bitfinex/quotes_SOLUSD_20250420
["timestamp","ask_amount","ask_price","bid_price","bid_amount"]
[1745146265991,103.75084886,138.1,138.09,17.02]
[1745146268599,1.063,138.1,138.09,17.02]
[1745146268903,0.063,138.1,138.09,17.02]
[1745146269082,1.063,138.1,138.09,17.02]
[1745146272917,1.063,138.1,138.09,265.12]
[1745146274029,0.063,138.1,138.09,265.12]
[1745146279409,1.063,138.1,138.09,265.12]
[1745146279719,0.063,138.1,138.09,265.12]
[1745146286541,1.063,138.1,138.09,265.12]
[1745146286708,0.063,138.1,138.09,265.12]
[1745146286910,1.063,138.1,138.09,265.12]
[1745146287411,0.063,138.1,138.09,265.12]
[1745146287606,1.063,138.1,138.09,265.12]
[1745146288103,0.063,138.1,138.09,265.12]
[1745146288304,1.063,138.1,138.09,265.12]
[1745146289235,0.063,138.1,138.09,265.12]
[1745146289432,1.063,138.1,138.09,265.12]
[1745146292342,1.063,138.1,138.09,264.72]
[1745146293535,1.063,138.1,138.09,248.1]
[1745146293711,1.063,138.1,138.09,264.72]
[1745146297028,0.063,138.1,138.09,264.72]
[1745146297229,1.063,138.1,138.09,264.72]
[1745146299252,19.71264886,138.1,138.09,264.72]
[1745146300729,1.063,138.1,138.09,264.72]
[1745146307554,2.6376,138.1,138.09,264.72]
[1745146307731,21.28724886,138.1,138.09,264.72]
[1745146309455,2.6376,138.1,138.09,264.72]
[1745146312430,103.68724886,138.1,138.09,264.72]
[1745146319165,2.6376,138.1,138.09,264.72]
[1745146321849,2.6376,138.1,138.09,16.62]
[1745146322566,103.68724886,138.1,138.09,16.62]
[1745146325453,129.68724886,138.1,138.09,16.62]
[1745146325963,19.64964886,138.09,138.08,16.62]
[1745146332883,1.0,138.09,138.08,16.62]
[1745146336071,19.64964886,138.09,138.08,16.62]
[1745146336381,102.04964886,138.09,138.08,16.62]
[1745146342173,19.64964886,138.09,138.08,16.62]
[1745146342869,1.0,138.09,138.08,16.62]
[1745146344287,0.063,138.1,138.08,16.62]
[1745146344469,1.0,138.09,138.08,16.62]
[1745146346593,19.64964886,138.09,138.08,16.62]
[1745146346993,1.0,138.09,138.08,16.62]
[1745146348420,19.64964886,138.09,138.08,16.62]
[1745146349191,1.0,138.09,138.08,16.62]
[1745146349807,1.0,138.07,138.06,248.1]
[1745146349996,1.0,138.07,138.06,264.7]
[1745146358018,19.64964886,138.07,138.06,248.1]
[1745146358230,19.64964886,138.07,138.06,264.7]
[1745146366526,19.64964886,138.07,138.06,16.6]
[1745146367245,18.64964886,138.06,138.02,16.63]
[1745146367418,19.64964886,138.03,138.02,16.63]
[1745146368245,21.17424886,138.03,138.02,16.63]
[1745146372347,19.64964886,138.03,138.02,16.63]
[1745146376298,1.0,138.03,138.02,16.63]
[1745146378461,19.64964886,138.03,138.02,16.63]
[1745146379030,1.0,138.03,138.02,16.63]
[1745146388661,19.64964886,138.03,138.02,16.63]
[1745146389158,26.89445071,138.03,138.02,16.63]
[1745146389773,26.89445071,138.03,138.0,0.03]
[1745146389774,128.04964886,138.01,138.0,17.46]
[1745146389951,45.64964886,137.98,137.97,17.46]
[1745146391070,45.64964886,137.95,137.94,0.03]
[1745146392361,19.64964886,137.95,137.94,0.03]
[1745146392981,1.0,137.95,137.94,0.03]
[1745146394573,1.0,137.95,137.94,19.01]
[1745146395159,1.0,137.95,137.94,267.31]
[1745146396773,19.64964886,137.95,137.94,267.31]
[1745146397771,1.0,137.95,137.94,267.31]
[1745146404257,27.0,137.95,137.94,267.31]
[1745146405270,1.0,137.95,137.94,267.31]
[1745146406983,19.64964886,137.95,137.94,267.31]
[1745146407878,45.64964886,137.95,137.94,267.31]
[1745146408458,47.22914886,137.95,137.94,267.31]
[1745146409964,19.64964886,137.93,137.92,19.03]
[1745146417896,45.64964886,137.93,137.92,19.03]
[1745146418086,45.64964886,137.89,137.88,0.03]
[1745146419499,19.64964886,137.88,137.87,19.92]
[1745146419694,102.04964886,137.88,137.87,19.92]
[1745146420285,102.04964886,137.88,137.75,19.92]
[1745146420286,1.0,137.76,137.75,19.92]
[1745146420486,1.0,137.77,137.75,19.92]
[1745146420679,1.0,137.76,137.75,19.92]
[1745146421103,1.0,137.78,137.75,19.92]
[1745146421403,0.94371809,137.77,137.76,248.44]
[1745146422084,0.94371809,137.77,137.76,268.36]
[1745146427515,3.45221809,137.77,137.76,19.92]
[1745146428088,2.45221809,137.77,137.76,19.92]
[1745146428286,0.94371809,137.68,137.66,21.48]
[1745146428515,0.94371809,137.67,137.66,21.48]
[1745146428895,0.94371809,137.69,137.66,21.48]
[1745146429114,0.94371809,137.67,137.66,21.48]
[1745146429990,0.94371809,137.68,137.66,21.48]
[1745146430209,0.94371809,137.67,137.66,21.48]
[1745146430704,0.94371809,137.68,137.66,21.48]
[1745146431008,0.94371809,137.7,137.66,21.48]
[1745146431200,18.64964886,137.76,137.66,21.48]
[1745146431201,0.94371809,137.72,137.66,21.48]
[1745146431400,0.94371809,137.7,137.66,21.48]
[1745146432103,0.94371809,137.72,137.66,21.48]
[1745146432306,0.94371809,137.7,137.66,21.48]
[1745146433197,0.94371809,137.72,137.66,21.48]
[1745146433401,0.94371809,137.68,137.66,21.48]
[1745146433719,0.94371809,137.67,137.66,21.48]
[1745146434215,0.94371809,137.69,137.66,21.48]
[1745146434522,0.94371809,137.7,137.66,21.48]
[1745146435021,0.94371809,137.74,137.67,6.2792]
[1745146435323,0.94371809,137.72,137.67,87.5792]
[1745146435692,0.94371809,137.75,137.67,87.5792]
[1745146435903,0.94371809,137.72,137.68,26.0]
[1745146436122,0.94371809,137.75,137.68,26.0]
[1745146436293,0.94371809,137.72,137.68,26.0]
[1745146437725,0.94371809,137.71,137.68,26.0]
[1745146438446,0.94371809,137.7,137.67,87.5792]
[1745146438602,0.94371809,137.7,137.67,6.2792]
[1745146439015,0.94371809,137.71,137.67,6.2792]
[1745146439421,0.94371809,137.7,137.67,6.2792]
[1745146439625,0.94371809,137.7,137.66,47.48]
[1745146439837,0.94371809,137.69,137.66,47.48]
[1745146440218,0.94371809,137.69,137.67,248.7]
[1745146440896,0.94371809,137.68,137.67,248.7]
[1745146441506,0.94371809,137.7,137.67,248.7]
[1745146441705,0.94371809,137.68,137.67,248.7]
[1745146444723,0.94371809,137.69,137.67,248.7]
[1745146444919,0.94371809,137.68,137.67,248.7]
[1745146445123,0.94371809,137.69,137.67,248.7]
[1745146445424,0.94371809,137.7,137.67,248.7]
[1745146445719,0.94371809,137.69,137.67,248.7]
[1745146445952,0.94371809,137.68,137.67,248.7]
[1745146448543,19.59336695,137.68,137.67,248.7]
[1745146450525,0.94371809,137.68,137.67,248.7]
[1745146453654,101.99336695,137.67,137.66,21.48]
[1745146453951,83.34371809,137.67,137.66,21.48]
[1745146454340,101.99336695,137.67,137.66,21.48]
[1745146455246,0.94371809,137.64,137.63,8.99060763]
[1745146455640,19.59336695,137.64,137.63,8.99060763]
[1745146455845,0.94371809,137.58,137.55,24.94]
[1745146456060,0.94371809,137.56,137.55,24.94]
[1745146456357,0.94371809,137.58,137.55,24.94]
[1745146456528,0.94371809,137.58,137.56,24.94]
[1745146456948,0.94371809,137.59,137.56,24.94]
[1745146457542,0.94371809,137.58,137.56,24.94]
[1745146457747,0.94371809,137.57,137.56,24.94]
[1745146458154,0.94371809,137.58,137.56,24.94]
[1745146458350,0.94371809,137.57,137.56,24.94]
[1745146459150,0.94371809,137.58,137.56,24.94]
[1745146459657,0.94371809,137.59,137.56,24.94]
[1745146459957,0.94371809,137.57,137.56,24.94]
[1745146461854,0.90383939,137.57,137.56,24.94]
[1745146462159,0.90383929,137.57,137.56,24.94]
[1745146462954,0.90383929,137.59,137.56,24.94]
[1745146463260,0.90383929,137.58,137.56,24.94]
[1745146464062,0.90383929,137.56,137.47,87.6431]
[1745146464267,0.90383929,137.56,137.48,28.38]
[1745146464771,0.90383929,137.57,137.49,18.64964886]
[1745146464982,0.90383929,137.55,137.5,26.0]
[1745146465270,0.90383929,137.57,137.51,248.94]
[1745146465480,0.90383929,137.55,137.51,248.94]
[1745146466048,6.5919,137.62,137.51,248.94]
[1745146469187,6.5919,137.62,137.52,18.64964886]
[1745146470091,1.6059,137.64,137.53,6.325]
[1745146472259,1.6059,137.64,137.54,18.64964886]
[1745146472474,1.6059,137.64,137.55,28.38]
[1745146473900,0.063,137.65,137.56,18.64964886]
[1745146474093,0.063,137.65,137.56,44.64964886]
[1745146475587,0.063,137.65,137.56,18.64964886]
[1745146477066,0.063,137.65,137.56,19.64964886]
[1745146477273,0.063,137.65,137.58,18.64964886]
[1745146478299,0.063,137.65,137.58,19.64964886]
[1745146478495,0.063,137.65,137.61,26.0]
[1745146478713,0.063,137.65,137.62,277.3]
[1745146480907,0.063,137.65,137.62,358.6]
[1745146487095,0.063,137.65,137.63,18.64964886]
[1745146489288,0.063,137.65,137.62,358.6]
[1745146492826,0.063,137.65,137.62,277.3]
[1745146492996,1.6439,137.65,137.62,277.3]
[1745146493520,0.063,137.65,137.62,277.3]
[1745146494098,0.063,137.65,137.63,18.64964886]
[1745146495232,0.063,137.65,137.62,358.6]
[1745146499453,0.02497013,137.65,137.62,358.6]
[1745146499620,0.01537101,137.65,137.62,358.6]
[1745146502460,0.01537101,137.65,137.63,18.64964886]
[1745146503650,0.063,137.7,137.63,106.47154886]
[1745146505243,0.063,137.7,137.63,111.02490539]
[1745146506426,0.063,137.7,137.65,18.64964886]
[1745146506854,0.063,137.7,137.68,18.64964886]
[1745146507063,0.063,137.7,137.69,26.7]
[1745146508254,0.063,137.7,137.69,45.34964886]
[1745146508928,0.063,137.7,137.69,26.7]
[1745146512250,0.063,137.7,137.69,275.48]
[1745146517638,1.726,137.7,137.69,275.48]
[1745146518444,0.063,137.7,137.69,275.48]
[1745146525573,0.063,137.71,137.69,375.42964886]
[1745146525870,0.063,137.71,137.7,18.64964886]
[1745146526054,0.063,137.71,137.7,99.94964886]
[1745146527266,0.063,137.71,137.7,81.3]
[1745146530161,0.063,137.71,137.7,99.94964886]
[1745146530667,0.063,137.71,137.7,81.3]
[1745146532972,0.063,137.71,137.7,99.94964886]
[1745146535976,0.063,137.71,137.7,81.3]
[1745146538668,0.063,137.71,137.7,99.94964886]
[1745146546976,0.063,137.76,137.71,18.64964886]
[1745146547157,0.063,137.76,137.71,99.94964886]
[1745146547567,0.063,137.76,137.74,26.0]
[1745146547782,0.063,137.76,137.74,107.3]
[1745146548284,0.063,137.77,137.75,18.64964886]
[1745146548467,0.063,137.77,137.76,42.92964886]
[1745146548788,0.063,137.77,137.76,24.28]
[1745146549964,0.063,137.77,137.76,42.92964886]
[1745146553519,0.063,137.77,137.76,124.22964886]
[1745146557220,0.063,137.77,137.76,150.22964886]
[1745146557723,0.063,137.77,137.76,124.22964886]
[1745146559406,0.063,137.77,137.76,150.22964886]
[1745146561326,0.063,137.77,137.76,124.22964886]
[1745146561728,0.063,137.77,137.76,372.80964886]
[1745146563211,0.063,137.77,137.76,354.16]
[1745146565521,6.7124,137.77,137.76,272.86]
[1745146568925,0.063,137.77,137.76,272.86]
[1745146570234,0.063,137.77,137.76,291.50964886]
[1745146570608,0.063,137.77,137.76,317.50964886]
[1745146570834,0.063,137.77,137.76,372.80964886]
[1745146571620,0.063,137.79,137.78,44.64964886]
[1745146573039,1.5882,137.82,137.78,44.64964886]
[1745146585127,1.5882,137.82,137.81,26.0]
[1745146589753,1.5882,137.82,137.81,274.52]
[1745146592761,1.5882,137.82,137.81,248.52]
[1745146594554,1.5882,137.82,137.81,269.7]
[1745146595240,0.063,137.83,137.81,269.7]
[1745146597434,1.5364,137.82,137.81,269.7]
[1745146597659,1.5364,137.82,137.81,21.18]
[1745146598162,7.7377,137.82,137.81,21.18]
[1745146601666,7.7377,137.82,137.76,81.3]
[1745146602942,7.7377,137.82,137.73,18.67964886]
[1745146603668,7.7377,137.82,137.73,44.67964886]
[1745146604950,82.4,137.81,137.73,0.03]
[1745146605160,1.561,137.8,137.74,269.02]
[1745146606064,6.5375,137.79,137.74,269.02]
[1745146606271,1.561,137.78,137.74,269.02]
[1745146618772,8.0746,137.82,137.74,269.02]
[1745146619073,1.5687,137.82,137.74,269.02]
[1745146621684,83.9687,137.82,137.74,269.02]
[1745146621862,109.9687,137.82,137.74,269.02]
[1745146622464,82.4,137.81,137.74,269.02]
[1745146622865,6.5059,137.8,137.74,269.02]
[1745146627186,109.9687,137.79,137.74,269.02]
[1745146627370,82.4,137.78,137.74,269.02]
[1745146627679,83.4,137.78,137.74,269.02]
[1745146627891,101.04964886,137.77,137.74,269.02]
[1745146628185,1.5687,137.76,137.74,269.02]
[1745146628988,6.4818,137.75,137.73,19.74]
[1745146629366,26.0,137.73,137.72,19.77]
[1745146630591,26.0,137.73,137.68,0.03]
[1745146633683,84.0143,137.74,137.68,0.03]
[1745146634383,1.6143,137.74,137.68,0.03]
[1745146635195,1.6143,137.74,137.69,268.54]
[1745146635682,8.1412,137.78,137.69,268.54]
[1745146636993,15.39928207,137.78,137.69,268.54]
[1745146637168,8.1412,137.78,137.69,268.54]
[1745146644198,15.39929428,137.78,137.69,268.54]
[1745146644792,8.1412,137.78,137.69,268.54]
[1745146645004,108.4,137.79,137.69,268.54]
[1745146645005,90.3431,137.83,137.72,26.0]
[1745146645191,90.3431,137.83,137.73,18.64964886]
[1745146645192,7.9431,137.83,137.73,18.64964886]
[1745146645505,1.626,137.83,137.73,18.64964886]
[1745146645804,0.063,137.83,137.76,25.06954886]
[1745146646004,0.063,137.83,137.77,19.76]
[1745146649674,0.063,137.83,137.78,18.64964886]
[1745146654208,0.063,137.83,137.78,44.64964886]
[1745146655498,0.063,137.83,137.81,26.0]
[1745146655696,0.063,137.83,137.82,248.62]
[1745146656021,0.063,137.83,137.82,267.26964886]
[1745146656385,0.063,137.83,137.82,348.56964886]
[1745146656585,0.063,137.83,137.82,355.17954886]
[1745146658094,0.063,137.87,137.86,18.64964886]
[1745146658298,0.063,137.88,137.86,118.96964886]
[1745146659207,0.063,137.88,137.87,25.25954886]
[1745146663393,0.063,137.93,137.88,18.64964886]
[1745146663724,0.063,137.93,137.9,44.64964886]
[1745146666632,0.063,137.93,137.9,52.3398754]
[1745146667132,0.063,137.93,137.9,44.64964886]
[1745146667718,0.063,137.93,137.9,125.94964886]
[1745146668924,0.063,137.95,137.91,18.64964886]
[1745146669131,0.063,137.95,137.93,18.64964886]
[1745146669315,0.063,137.95,137.94,248.4]
[1745146669506,0.063,137.95,137.94,348.34964886]
[1745146671513,0.063,137.95,137.94,374.34964886]
[1745146672834,0.063,137.95,137.94,348.34964886]
[1745146673011,0.063,137.95,137.94,354.68234886]
[1745146674431,0.063,137.95,137.94,355.68234886]
[1745146674637,6.6314,138.05,137.95,18.64964886]
[1745146674952,6.6314,138.05,137.95,99.94964886]
[1745146675438,0.01822101,138.0,137.95,99.94964886]
[1745146677735,0.01822101,138.0,137.98,26.0]
[1745146677939,0.01822101,138.0,137.99,19.0]
[1745146680541,0.01822101,138.0,137.96,26.0]
[1745146680728,0.01822101,138.0,137.99,18.3]
[1745146681941,0.01822101,138.0,137.99,62.94964886]
[1745146682328,0.01822101,138.0,137.99,118.24964886]
[1745146685743,0.01822101,138.0,137.99,144.24964886]
[1745146685940,0.063,138.06,138.02,26.0]
[1745146686129,0.063,138.06,138.03,52.78043095]
[1745146686329,0.063,138.06,138.03,44.64964886]
[1745146687834,0.063,138.06,138.04,18.3]
[1745146688033,0.063,138.06,138.05,248.22]
[1745146689757,0.063,138.06,138.05,266.5]
[1745146697545,0.063,138.06,138.05,285.14964886]
[1745146698157,0.06299502,138.06,138.05,285.14964886]
[1745146698960,0.06299502,138.06,138.05,266.5]
[1745146708545,0.06299502,138.06,138.05,285.14964886]
[1745146710167,0.06299502,138.06,138.05,311.14964886]
[1745146710467,0.06299502,138.06,138.05,392.44964886]
[1745146710759,0.06299502,138.06,138.05,366.44964886]
[1745146712740,0.06299502,138.06,138.05,348.16964886]
[1745146713033,0.06299502,138.06,138.05,365.72964886]
[1745146716873,0.06299502,138.06,138.05,391.72964886]
[1745146717271,0.06299502,138.06,138.05,365.72964886]
[1745146720754,0.063,138.08,138.06,18.64964886]
[1745146720968,0.063,138.1,138.06,19.64964886]
[1745146721154,0.063,138.1,138.06,100.94964886]
[1745146721354,0.063,138.1,138.06,99.94964886]
[1745146723257,0.063,138.1,138.06,18.64964886]
[1745146723569,0.063,138.1,138.05,265.78]
[1745146723570,8.2209,138.09,138.07,19.2]
[1745146724068,1.5552,138.08,137.95,11.24735904]
[1745146724277,26.0,138.06,137.95,11.24735904]
[1745146724459,8.2209,138.05,137.98,26.0]
[1745146725168,8.2209,138.05,138.0,267.26]
[1745146726866,8.2209,138.05,138.01,18.64964886]
[1745146728481,27.5773,138.09,138.0,267.26]
[1745146728780,1.5773,138.09,138.01,18.64964886]
[1745146730482,1.5773,138.09,138.0,267.26]
[1745146732187,83.9773,138.09,138.0,267.26]
[1745146733055,108.4,138.08,138.0,267.26]
[1745146735005,115.64219458,138.08,138.0,267.26]
[1745146735387,1.6121,138.07,138.0,267.26]
[1745146735885,8.85516868,138.07,138.0,267.26]
[1745146736087,6.1793,138.06,138.0,267.26]
[1745146736289,82.4,138.05,138.0,267.26]
[1745146740994,1.6121,138.07,138.0,267.26]
[1745146744390,26.0,138.06,138.0,267.26]
[1745146745796,1.6121,138.07,138.0,267.26]
[1745146749296,1.6121,138.07,138.0,293.26]
[1745146753195,26.0,138.06,138.0,267.26]
[1745146757176,1.6121,138.07,138.0,267.26]
[1745146760303,1.6121,138.07,138.01,18.64964886]
[1745146760602,0.063,138.1,138.01,18.64964886]
[1745146760798,0.063,138.1,138.03,18.64964886]
[1745146761380,0.063,138.1,138.07,18.64964886]
[1745146761681,0.063,138.1,138.08,18.64]
[1745146763514,0.063,138.1,138.09,18.64964886]
[1745146763883,0.063,138.1,138.08,18.64]
[1745146765106,0.063,138.1,138.09,18.64964886]
[1745146766004,0.063,138.1,138.08,18.64]
[1745146766211,0.063,138.1,138.08,44.64]
[1745146767112,0.063,138.1,138.09,248.1]
[1745146767992,0.063,138.1,138.09,266.74964886]
[1745146770021,0.063,138.1,138.09,248.1]
[1745146772410,0.063,138.1,138.09,266.74964886]
[1745146777719,0.063,138.1,138.09,248.1]
[1745146778604,0.063,138.1,138.09,266.74]
[1745146781219,1.6865,138.1,138.09,266.74]
[1745146782317,1.6865,138.1,138.09,248.1]
[1745146782530,1.6865,138.1,138.09,266.74]
[1745146792217,0.063,138.1,138.09,266.74]
[1745146798734,26.063,138.1,138.09,266.74]
[1745146800134,27.727,138.1,138.09,266.74]
[1745146800642,1.727,138.1,138.09,266.36]
[1745146800837,26.0,138.08,138.03,248.1]
[1745146801146,108.4,138.08,138.04,18.26]
[1745146801649,82.4,138.07,138.04,18.26]
[1745146801823,27.664,138.05,138.04,18.26]
[1745146802217,1.664,138.05,138.04,18.26]
[1745146802919,8.1353,138.05,138.02,0.063]
[1745146803118,34.1353,138.05,138.02,0.063]
[1745146804939,26.0,138.03,138.02,0.063]
[1745146805445,44.64964886,138.03,138.02,0.063]
[1745146805620,48.1938016,138.03,138.02,0.063]
[1745146806433,49.1938016,138.03,138.02,0.063]
[1745146806751,49.1938016,138.03,137.99,0.03]
[1745146806752,1.6471,138.0,137.99,0.03]
[1745146806934,27.6471,138.0,137.99,18.29]
[1745146807242,52.84944886,138.0,137.99,18.29]
[1745146809033,52.84944886,138.0,137.99,18.26]
[1745146809749,18.64964886,137.99,137.98,18.26]
[1745146810546,26.84944886,138.0,137.98,18.26]
[1745146810753,44.64964886,137.97,137.96,0.03]
[1745146811434,26.0,137.97,137.96,0.03]
[1745146815452,44.64964886,137.97,137.96,0.03]
[1745146816448,26.0,137.97,137.96,0.03]
[1745146819453,82.4,137.99,137.96,0.03]
[1745146820836,1.6471,138.0,137.96,0.03]
[1745146821159,82.4,138.02,137.96,0.03]
[1745146821754,1.5497,138.04,137.96,18.67964886]
[1745146821950,82.4,138.05,137.97,6.3812]
[1745146822136,6.3244,138.07,137.98,18.64964886]
[1745146822137,82.4,138.07,137.98,18.64964886]
[1745146826756,82.4,138.07,137.99,26.0]
[1745146828653,82.4,138.07,137.98,18.64964886]
[1745146828831,82.4,138.07,137.97,6.3812]
[1745146829761,82.4,138.07,137.98,18.64964886]
[1745146836056,82.4,138.07,137.97,26.0]
[1745146836265,108.4,138.06,137.97,26.0]
[1745146836473,6.4704,138.05,137.97,26.0]
[1745146837270,6.4704,138.05,137.96,18.67964886]
[1745146838239,6.4704,138.05,137.96,0.03]
[1745146838442,1.5904,137.96,137.91,0.03]
[1745146838959,7.10982237,137.96,137.91,0.03]
[1745146842364,1.5904,137.96,137.91,0.03]
[1745146842766,1.0,137.89,137.85,0.03]
[1745146842967,19.64964886,137.88,137.85,0.03]
[1745146843164,1.0,137.87,137.85,0.03]
[1745146843368,18.64964886,137.86,137.85,0.03]
[1745146843560,3.75626427,137.86,137.85,0.03]
[1745146845370,1.5904,137.86,137.85,0.03]
[1745146846570,83.9904,137.86,137.85,0.03]
[1745146846768,62.02964886,137.84,137.83,0.03]
[1745146846975,1.0,137.81,137.78,17.5]
[1745146847356,2.16586427,137.81,137.78,17.5]
[1745146847560,2.16586427,137.81,137.79,0.03]
[1745146847760,3.16586427,137.81,137.79,0.03]
[1745146848366,26.0,137.8,137.79,0.03]
[1745146848777,27.0,137.8,137.79,0.03]
[1745146849578,26.0,137.8,137.79,0.03]
[1745146849764,27.0,137.8,137.79,0.03]
[1745146850169,26.0,137.8,137.79,0.03]
[1745146850369,27.0,137.8,137.79,0.03]
[1745146850680,26.0,137.8,137.79,0.03]
[1745146850977,27.0,137.8,137.79,0.03]
[1745146851571,26.0,137.8,137.79,0.03]
[1745146851880,27.0,137.8,137.79,0.03]
[1745146852084,26.0,137.8,137.79,0.03]
[1745146852864,27.0,137.8,137.79,0.03]
[1745146853281,26.0,137.8,137.79,0.03]
[1745146855260,26.0,137.82,137.79,0.03]
[1745146855679,26.0,137.81,137.79,0.03]
[1745146855978,82.4,137.88,137.79,18.67964886]
[1745146856280,26.0,137.85,137.79,18.67964886]
[1745146856978,82.4,137.88,137.79,18.67964886]
[1745146857465,26.0,137.85,137.79,18.67964886]
[1745146862184,26.0,137.85,137.79,0.03]
[1745146863974,26.0,137.84,137.79,0.03]
[1745146864685,26.0,137.84,137.79,18.67964886]
[1745146865966,82.4,137.87,137.79,18.67964886]
[1745146866167,26.0,137.84,137.79,18.67964886]
[1745146866460,82.4,137.89,137.79,18.67964886]
[1745146866790,1.6167,137.9,137.79,100.50034886]
[1745146867165,1.6167,137.9,137.81,18.64964886]
[1745146867567,27.6167,137.9,137.81,18.64964886]
[1745146869895,26.0,137.9,137.83,18.64964886]
[1745146870121,26.0,137.9,137.85,18.64964886]
[1745146870273,26.0,137.9,137.86,248.56]
[1745146870771,0.063,137.91,137.86,248.56]
[1745146871368,26.063,137.91,137.86,248.56]
[1745146874002,26.063,137.91,137.87,18.64964886]
[1745146875102,26.063,137.91,137.86,248.56]
[1745146875395,26.0,137.9,137.86,248.56]
[1745146877701,26.0,137.89,137.86,248.56]
[1745146877906,1.524,137.88,137.86,248.56]
[1745146881785,27.524,137.88,137.86,248.56]
[1745146883200,27.524,137.88,137.87,17.5]
[1745146884308,2.524,137.88,137.87,17.5]
[1745146884706,21.17364886,137.88,137.87,17.5]
[1745146885023,47.17364886,137.88,137.87,17.5]
[1745146885191,21.17364886,137.88,137.87,17.5]
[1745146887020,28.524,137.88,137.87,17.5]
[1745146887192,27.524,137.88,137.87,17.5]
[1745146887812,1.524,137.88,137.87,17.5]
[1745146888109,27.524,137.88,137.87,17.5]
[1745146912732,1.524,137.88,137.87,17.5]
[1745146913130,83.924,137.88,137.87,17.5]
[1745146914217,84.924,137.88,137.87,17.5]
[1745146916032,47.17364886,137.88,137.87,17.5]
[1745146916215,28.524,137.88,137.87,17.5]
[1745146916407,27.524,137.88,137.87,17.5]
[1745146916612,28.524,137.88,137.87,17.5]
[1745146917740,1.0,137.86,137.83,248.56]
[1745146917938,26.0,137.84,137.83,248.56]
[1745146918152,26.0,137.84,137.83,266.04]
[1745146921045,9.42001644,137.88,137.83,266.04]
[1745146921336,26.0,137.87,137.83,266.04]
[1745146921635,1.524,137.88,137.83,266.04]
[1745146921831,26.0,137.87,137.83,266.04]
[1745146922135,0.063,137.91,137.84,25.21754886]
[1745146922349,0.063,137.91,137.84,33.74361351]
[1745146922846,0.063,137.91,137.86,18.64964886]
[1745146923144,0.063,137.91,137.9,18.64964886]
[1745146923438,0.063,137.91,137.9,36.12964886]
[1745146926757,0.063,137.91,137.85,24.69824886]
[1745146926961,0.063,137.91,137.86,17.48]
[1745146931731,26.0,137.88,137.86,17.48]
[1745146934749,82.463,137.91,137.86,17.48]
[1745146934949,26.0,137.9,137.86,17.48]
[1745146941251,0.063,137.91,137.87,18.64964886]
[1745146942968,0.063,137.91,137.86,17.48]
[1745146943647,0.063,137.91,137.87,248.48]
[1745146946470,26.0,137.9,137.87,248.48]
[1745146947768,0.063,137.91,137.88,18.64964886]
[1745146947947,0.063,137.91,137.88,24.93054886]
[1745146950965,0.063,137.91,137.88,18.64964886]
[1745146967188,0.063,137.91,137.9,44.64964886]